bitfinex/quotes_ETHUSD_20240823
["timestamp","ask_amount","ask_price","bid_price","bid_amount"]
[1724438462370,0.1301956,2738.7,2738.0,3.6523]
[1724438462568,0.25404956,2738.6,2738.0,3.6523]
[1724438462993,0.25404956,2738.6,2737.8,7.30502]
[1724438463202,0.25404956,2738.6,2737.8,3.65247]
[1724438463367,2.2629,2738.5,2737.8,3.65247]
[1724438463568,2.2629,2738.5,2737.9,3.6524]
[1724438464227,2.2629,2738.5,2738.0,3.65229]
[1724438464570,2.2629,2738.5,2738.0,3.65222]
[1724438464802,2.2629,2738.5,2738.0,3.65223]
[1724438465009,2.50220956,2738.5,2738.0,3.65223]
[1724438465221,2.50220956,2738.5,2738.1,3.65208]
[1724438465421,0.1301956,2738.7,2737.9,3.65239]
[1724438465714,0.1301956,2738.7,2738.5,3.65154]
[1724438465914,0.1301956,2738.7,2738.1,3.65208]
[1724438466128,0.1301956,2738.7,2738.1,3.65207]
[1724438466913,0.1301956,2738.7,2738.4,3.65176]
[1724438467078,0.1301956,2738.7,2738.6,3.6515]
[1724438468733,0.1301956,2738.7,2738.4,3.65165]
[1724438469250,0.1301956,2738.7,2738.2,3.65196]
[1724438469393,0.1301956,2738.7,2738.2,3.65195]
[1724438469700,2.3689,2738.6,2738.0,3.6522]
[1724438470096,0.1301956,2738.7,2738.4,3.65166]
[1724438470294,0.1301956,2738.7,2738.3,3.65179]
[1724438470829,0.1301956,2738.7,2738.6,3.6515]
[1724438471202,0.1301956,2738.7,2738.6,7.303]
[1724438471400,0.1301956,2738.7,2738.6,8.0333]
[1724438472529,0.1301956,2738.7,2738.6,0.7303]
[1724438472733,0.1301956,2738.7,2738.2,3.65195]
[1724438472936,0.1301956,2738.7,2738.0,3.65222]
[1724438472937,2.4946,2738.6,2738.0,3.65222]
[1724438473108,2.4946,2738.6,2738.0,3.65221]
[1724438473433,2.4946,2738.6,2738.4,3.65175]
[1724438473734,2.4946,2738.6,2738.4,4.382119]
[1724438474031,0.1301956,2738.7,2738.5,3.65163]
[1724438474237,0.1301956,2738.7,2738.4,4.382119]
[1724438474238,0.1301956,2738.7,2738.4,8.033799]
[1724438474455,0.1301956,2738.7,2738.4,4.382049]
[1724438474596,0.1301956,2738.7,2738.5,3.65162]
[1724438475323,0.1301956,2738.7,2738.6,3.6515]
[1724438475528,0.1301956,2738.7,2738.6,7.303]
[1724438475843,0.1301956,2738.7,2738.6,3.6515]
[1724438476697,0.1301956,2738.7,2738.5,3.65158]
[1724438476904,0.1301956,2738.7,2738.6,0.365158]
[1724438477338,0.1301956,2738.7,2738.6,4.016658]
[1724438477924,0.1301956,2738.7,2738.6,7.668158]
[1724438478415,0.1301956,2738.7,2738.6,11.319658]
[1724438478614,0.1301956,2738.7,2738.6,14.234258]
[1724438478831,0.1301956,2738.7,2738.6,17.234258]
[1724438479236,0.1301956,2738.7,2738.6,16.684258]
[1724438479461,0.1301956,2738.7,2738.6,17.234258]
[1724438479602,0.16712681,2741.7,2738.6,17.234258]
[1724438479603,2.3627,2740.4,2739.5,2.3646]
[1724438479943,2.4978,2741.0,2738.9,3.65108]
[1724438480096,2.4978,2740.2,2738.9,3.65108]
[1724438480434,2.4978,2740.1,2739.5,3.65017]
[1724438480639,2.4978,2740.1,2739.3,3.65056]
[1724438481021,2.4978,2740.1,2739.1,3.65081]
[1724438481238,4.27267771,2740.8,2738.4,4.27267771]
[1724438481239,2.4655,2739.9,2738.4,4.27267771]
[1724438481539,2.4655,2739.4,2738.4,3.65173]
[1724438481704,2.4655,2739.4,2738.5,3.65159]
[1724438481900,2.4655,2739.4,2738.7,3.65132]
[1724438482114,2.4655,2739.4,2738.5,3.65159]
[1724438482115,3.0,2739.7,2738.9,3.65099]
[1724438482314,2.4655,2739.7,2739.0,0.365099]
[1724438482839,2.4655,2739.7,2739.0,4.016039]
[1724438483154,2.4357,2740.5,2739.5,3.65028]
[1724438483303,2.4357,2740.5,2739.3,3.6505]
[1724438483649,2.4357,2740.3,2739.3,4.380619]
[1724438483955,4.27267771,2740.2,2739.0,0.365099]
[1724438484261,4.27267771,2740.2,2738.2,3.81895519]
[1724438484262,2.4357,2739.7,2738.6,3.65148]
[1724438484551,2.4357,2739.7,2738.7,3.65129]
[1724438484759,2.4357,2739.7,2738.6,3.65148]
[1724438484904,2.4357,2739.7,2738.7,3.65136]
[1724438485105,2.4357,2739.6,2738.7,3.65136]
[1724438485304,6.34426,2739.6,2738.7,4.016496]
[1724438485528,5.4357,2739.6,2738.8,3.65114]
[1724438485738,5.4357,2739.6,2738.7,0.365136]
[1724438485739,2.4357,2739.6,2738.9,3.65108]
[1724438485898,2.4357,2739.6,2738.7,4.016496]
[1724438486571,2.4357,2739.6,2738.8,3.65112]
[1724438486718,2.4357,2739.6,2738.8,4.27267771]
[1724438487073,2.4357,2739.6,2738.9,0.82890937]
[1724438487222,2.4357,2739.6,2738.7,4.016476]
[1724438487223,2.4357,2739.6,2738.5,3.65162]
[1724438487418,4.27267771,2739.5,2737.8,4.27267771]
[1724438487724,2.3406,2739.2,2738.3,3.6518]
[1724438488040,2.3406,2739.2,2738.5,3.65153]
[1724438489051,2.3406,2739.2,2738.3,3.65187]
[1724438489254,2.3406,2739.0,2738.3,3.65187]
[1724438489923,2.3406,2739.0,2738.4,3.65173]
[1724438490121,2.3406,2739.0,2738.5,3.65152]
[1724438490370,2.3406,2739.0,2738.5,3.65163]
[1724438490575,2.3406,2739.0,2738.4,3.65173]
[1724438490921,2.57466,2739.0,2738.3,3.65188]
[1724438491224,2.57466,2739.0,2738.4,3.65174]
[1724438491426,2.3406,2739.0,2738.4,3.65174]
[1724438491870,2.3406,2739.0,2738.4,3.65169]
[1724438492272,2.3406,2739.0,2738.5,3.65163]
[1724438492924,2.3406,2739.0,2737.7,2.2658]
[1724438492925,2.3406,2739.0,2738.6,3.65146]
[1724438493274,2.3406,2739.0,2738.4,3.65168]
[1724438493477,0.23406,2738.9,2738.4,3.65168]
[1724438493686,2.3406,2738.8,2738.2,3.65198]
[1724438493970,2.3406,2738.8,2737.5,7.27267771]
[1724438494177,2.3406,2738.8,2738.0,3.65218]
[1724438494320,2.3406,2738.8,2737.5,4.27267771]
[1724438494321,2.3406,2738.8,2737.9,3.65231]
[1724438494522,2.518766,2738.7,2738.1,3.65216]
[1724438494765,2.518766,2738.7,2738.1,7.30423]
[1724438494959,2.2613,2738.7,2738.1,3.65207]
[1724438495528,2.2613,2738.7,2737.9,7.30472]
[1724438495723,2.2613,2738.7,2738.0,3.65229]
[1724438496159,3.6515,2738.6,2737.5,3.65285]
[1724438496357,2.2613,2738.4,2737.7,3.65269]
[1724438497250,2.2613,2738.4,2737.7,7.30521]
[1724438497447,2.2613,2738.4,2737.9,3.65235]
[1724438498328,2.2613,2738.4,2738.1,3.65216]
[1724438499228,2.2613,2738.4,2737.9,3.65232]
[1724438499426,2.2613,2738.4,2737.7,3.65266]
[1724438499427,2.48743,2738.4,2737.1,6.12668]
[1724438499626,2.48743,2738.4,2737.7,3.65259]
[1724438499863,2.2613,2738.4,2738.0,3.65222]
[1724438500243,2.2613,2738.4,2738.0,7.30446]
[1724438500556,2.2613,2738.4,2738.1,3.65206]
[1724438500865,2.2613,2738.4,2737.8,3.65248]
[1724438501612,2.2613,2738.4,2738.0,3.65229]
[1724438501967,2.2613,2738.4,2738.0,3.65221]
[1724438502129,2.2613,2738.4,2738.0,4.017431]
[1724438502330,2.2613,2738.4,2738.0,3.65221]
[1724438502689,2.2613,2738.4,2737.9,3.65231]
[1724438502853,2.2613,2738.4,2738.0,3.65229]
[1724438503173,3.65036,2739.5,2737.4,3.65306]
[1724438503174,2.2666,2738.8,2738.6,3.6514]
[1724438503373,2.2631,2739.6,2738.8,3.65123]
[1724438503558,2.2631,2739.6,2738.6,0.36514]
[1724438503559,2.2631,2739.6,2738.6,4.01658]
[1724438503765,2.2631,2739.5,2738.6,3.65141]
[1724438503961,3.65065,2739.3,2738.2,3.65194]
[1724438504158,2.2631,2739.2,2738.2,3.65194]
[1724438504468,2.2631,2739.1,2738.0,3.65219]
[1724438504677,2.2631,2739.0,2738.0,3.65219]
[1724438504879,2.3865,2738.8,2738.2,3.65193]
[1724438505043,2.3865,2738.8,2738.1,3.65216]
[1724438505435,2.3865,2738.8,2737.9,7.30473]
[1724438505589,2.3865,2738.8,2737.8,3.65254]
[1724438505590,2.3865,2738.6,2737.8,3.65254]
[1724438505954,2.3865,2738.5,2737.8,3.65254]
[1724438506160,2.98015,2738.5,2737.8,3.65254]
[1724438506370,2.3865,2738.5,2737.8,3.65254]
[1724438506569,2.3865,2738.5,2737.6,3.65274]
[1724438506978,2.3865,2738.5,2737.8,3.65255]
[1724438507311,2.3865,2738.5,2738.0,3.65219]
[1724438507795,2.3865,2738.5,2737.6,3.65274]
[1724438508095,2.3865,2738.5,2737.6,0.365274]
[1724438508278,2.3865,2738.5,2737.8,3.65253]
[1724438508477,2.3865,2738.5,2738.0,3.6522]
[1724438508794,2.3865,2738.5,2737.6,3.65278]
[1724438508964,2.3865,2738.5,2737.7,3.65258]
[1724438509164,2.3865,2738.5,2737.6,3.65278]
[1724438509366,3.0,2738.8,2737.6,3.65278]
[1724438509367,2.3223,2738.3,2737.6,3.65278]
[1724438509782,2.3223,2738.3,2737.6,7.30552]
[1724438509959,2.3223,2738.3,2737.7,3.6527]
[1724438510303,2.3223,2738.3,2737.4,3.65301]
[1724438510505,2.3223,2738.2,2737.4,3.65301]
[1724438510808,2.4587,2738.0,2737.4,3.653]
[1724438511151,2.4587,2738.0,2737.6,3.65275]
[1724438511353,2.4587,2738.0,2737.8,3.65249]
[1724438512332,2.4587,2738.0,2737.6,3.65275]
[1724438512333,2.3651,2737.8,2736.3,0.93302773]
[1724438512462,2.3651,2737.6,2736.3,0.3614162]
[1724438512819,2.3651,2737.6,2735.8,1.90584697]
[1724438512820,2.3651,2737.6,2737.1,3.65348]
[1724438512959,2.3651,2737.6,2736.8,2.4173]
[1724438513163,2.3651,2737.6,2737.4,3.65308]
[1724438513721,7.92410771,2738.7,2737.9,3.65238]
[1724438513722,2.3651,2738.7,2737.9,3.65238]
[1724438513851,2.3651,2738.7,2738.0,0.365238]
[1724438514391,2.3651,2738.7,2738.0,4.017518]
[1724438514594,2.3651,2738.7,2738.3,3.65188]
[1724438515054,2.3651,2738.7,2738.1,3.65216]
[1724438515255,2.3651,2738.7,2738.2,0.4017398]
[1724438515485,2.3651,2738.7,2738.0,0.365238]
[1724438515673,2.3651,2738.7,2737.7,3.65267]
[1724438516088,2.386,2738.5,2737.3,3.65319]
[1724438516319,2.386,2738.5,2737.1,4.27267771]
[1724438516320,2.386,2738.4,2737.4,3.65308]
[1724438516683,2.386,2738.2,2737.3,3.65321]
[1724438517014,2.386,2738.0,2737.3,3.65321]
[1724438517589,2.386,2738.0,2736.9,3.65365]
[1724438517795,2.9297,2737.9,2736.9,3.65365]
[1724438517964,6.58215,2737.9,2736.8,3.65389]
[1724438518306,6.58215,2737.9,2736.4,2.3023]
[1724438518307,2.2632,2737.7,2736.7,3.65395]
[1724438518511,2.78952,2737.6,2736.7,3.65395]
[1724438518675,2.2632,2737.6,2736.7,3.65402]
[1724438519403,2.2632,2737.6,2737.2,3.65325]
[1724438519566,2.2632,2737.6,2737.3,3.65321]
[1724438520009,2.2632,2737.6,2737.4,3.65304]
[1724438520312,2.2632,2737.6,2737.2,3.65325]
[1724438520313,2.3711,2737.9,2737.2,3.65334]
[1724438521201,2.3711,2737.9,2736.9,3.65373]
[1724438521364,2.2971,2737.7,2736.3,2.3846]
[1724438521571,2.2971,2737.7,2736.7,3.65393]
[1724438521572,2.2971,2737.6,2736.7,3.65393]
[1724438521770,3.742079,2737.6,2736.7,3.65393]
[1724438521984,5.2971,2737.5,2736.7,3.65393]
[1724438522705,5.2971,2737.5,2736.6,3.65412]
[1724438522895,0.55,2737.4,2736.5,3.65427]
[1724438523096,2.3999,2737.3,2736.5,3.65427]
[1724438523281,2.3999,2737.3,2736.7,3.65391]
[1724438523677,0.894979,2737.6,2736.7,3.65391]
[1724438523939,2.4084,2737.7,2737.1,3.65341]
[1724438524689,2.4084,2737.7,2737.1,7.30679]
[1724438524891,2.4084,2737.7,2737.1,3.65338]
[1724438525735,2.4084,2737.7,2737.2,3.65333]
[1724438526575,2.4084,2737.7,2737.3,3.65322]
[1724438527340,2.4084,2737.7,2736.2,3.65462]
[1724438527490,2.4084,2737.7,2735.7,3.65532]
[1724438527491,2.4084,2737.7,2736.8,3.6538]
[1724438527674,2.64924,2737.7,2737.0,3.65363]
[1724438527875,0.55,2737.6,2737.0,3.65363]
[1724438528177,3.55,2737.6,2737.0,3.65363]
[1724438528731,3.55,2737.6,2736.8,3.6538]
[1724438528892,4.169924,2737.6,2736.8,3.6538]
[1724438529093,4.169924,2737.6,2737.0,3.65363]
[1724438529341,2.4084,2737.7,2737.1,3.6534]
[1724438529484,2.4084,2737.7,2737.3,3.65314]
[1724438530298,2.4084,2737.7,2737.4,3.65309]
[1724438530495,2.4084,2737.7,2737.3,7.30627]
[1724438530823,2.4084,2737.7,2737.4,3.65301]
[1724438531022,2.4593,2738.0,2737.5,0.730614]
[1724438531342,2.4593,2738.0,2737.2,3.65326]
[1724438532718,2.4924,2737.9,2737.0,3.65361]
[1724438532960,2.4924,2737.8,2736.8,3.6539]
[1724438533159,2.4924,2737.8,2736.7,3.65396]
[1724438533160,2.4924,2737.7,2736.7,3.65393]
[1724438533357,2.4924,2737.6,2736.7,3.65402]
[1724438533564,0.55,2737.5,2736.7,4.384846]
[1724438534435,0.55,2737.5,2736.5,7.30846]
[1724438534436,2.3798,2737.4,2736.5,7.30846]
[1724438534636,2.3798,2737.4,2736.5,7.30843]
[1724438534637,5.3798,2737.4,2736.5,7.30843]
[1724438534956,5.3798,2737.4,2736.7,3.65402]
[1724438535128,5.3798,2737.4,2736.5,3.65421]
[1724438535856,2.3798,2737.3,2736.3,3.6545]
[1724438536058,2.3798,2737.3,2736.2,3.65469]
[1724438536059,2.9298,2737.2,2736.2,3.65469]
[1724438536230,2.9298,2737.2,2736.1,3.65475]
[1724438536432,3.0,2737.1,2736.1,3.65475]
[1724438536964,3.0,2737.1,2736.3,3.65455]
[1724438537255,0.55,2737.2,2736.3,3.65455]
[1724438537256,2.7229,2737.0,2736.3,3.65455]
[1724438538337,2.7229,2737.0,2736.1,3.65472]
[1724438538558,2.7229,2737.0,2736.2,3.65462]
[1724438538857,2.7229,2737.0,2736.3,7.30901]
[1724438539017,2.7229,2737.0,2736.3,3.65447]
[1724438539671,2.3679,2737.0,2736.3,4.385395]
[1724438539842,2.3679,2737.0,2736.7,3.65396]
[1724438540485,2.3679,2737.0,2736.6,3.65416]
[1724438540848,2.2588,2737.6,2736.7,3.65402]
[1724438541053,2.2588,2737.6,2736.6,3.65416]
[1724438541572,2.2588,2737.5,2736.6,3.65416]
[1724438541776,0.591171,2737.4,2736.6,3.65416]
[1724438542082,3.591171,2737.4,2736.6,3.65416]
[1724438543015,3.591171,2737.4,2736.5,3.65429]
[1724438543672,3.0,2737.4,2736.8,3.65381]
[1724438544033,2.2588,2737.5,2737.0,3.65352]
[1724438544235,7.92434771,2738.5,2737.1,3.65339]
[1724438544236,2.3285,2737.8,2737.1,3.65339]
[1724438544573,2.3285,2737.8,2737.3,3.65322]
[1724438544769,2.3285,2737.8,2737.1,7.30681]
[1724438544984,2.3285,2737.8,2737.2,0.730681]
[1724438545140,2.3285,2737.8,2737.1,3.65339]
[1724438545538,2.3285,2737.8,2736.9,7.30738]
[1724438545843,2.3285,2737.8,2736.9,3.65368]
[1724438546156,2.3285,2737.8,2736.7,6.09396]
[1724438546157,2.3285,2737.6,2736.7,3.65396]
[1724438546362,2.3285,2737.6,2736.8,3.65389]
[1724438546545,2.3285,2737.6,2736.9,0.730785]
[1724438546875,2.3285,2737.6,2736.7,3.65394]
[1724438547173,2.3285,2737.6,2736.8,3.65387]
[1724438547471,2.3285,2737.6,2736.9,3.65376]
[1724438549589,2.3285,2737.6,2736.9,3.65367]
[1724438549738,2.3285,2737.6,2736.9,7.30736]
[1724438549938,2.3285,2737.6,2736.9,8.038096]
[1724438550191,2.3285,2737.6,2737.1,3.65342]
[1724438550341,2.3285,2737.6,2737.0,3.65351]
[1724438550553,2.3285,2737.6,2737.1,3.65349]
[1724438550893,2.3285,2737.6,2737.1,0.07306607]
[1724438551193,7.50847899,2738.6,2737.7,3.65261]
[1724438551194,2.4756,2738.4,2737.7,3.65261]
[1724438551852,2.4756,2738.4,2737.5,7.30575]
[1724438552059,2.4756,2738.4,2737.5,3.65284]
[1724438553473,2.4756,2738.4,2737.3,3.65314]
[1724438553703,3.195229,2738.3,2737.3,3.65314]
[1724438553992,3.0,2738.2,2737.6,3.6528]
[1724438554319,3.0,2738.2,2737.1,0.67677438]
[1724438554320,3.0,2738.2,2737.9,3.65238]
[1724438554458,2.2825,2738.3,2738.0,3.65221]
[1724438554659,0.06366163,2738.9,2738.0,3.65221]
[1724438554862,0.59970216,2738.9,2738.0,5.05673277]
[1724438555104,0.59970216,2738.9,2738.1,3.65213]
[1724438555303,2.2825,2739.0,2738.1,3.65213]
[1724438555460,5.93347,2739.0,2738.0,1.40452277]
[1724438555663,5.93347,2739.0,2737.9,3.65234]
[1724438555664,2.2825,2738.9,2737.9,3.65234]
[1724438556870,2.2825,2738.9,2737.9,7.30467]
[1724438557175,2.4177,2738.8,2737.9,3.65233]
[1724438557389,5.4177,2738.8,2737.9,3.65233]
[1724438558565,3.0,2738.7,2738.0,3.65227]
[1724438558787,3.0,2738.7,2738.0,4.017497]
[1724438559063,2.4177,2738.8,2738.0,4.017497]
[1724438559263,2.4177,2738.8,2737.8,3.65255]
[1724438559581,5.4177,2738.8,2737.8,3.65255]
[1724438559765,9.06896,2738.8,2737.8,3.65255]
[1724438559966,2.4177,2738.7,2737.8,3.65255]
[1724438560203,9.06907,2738.7,2737.6,3.65272]
[1724438560367,1.206907,2738.6,2737.7,1.03949977]
[1724438560563,4.206907,2738.6,2737.7,1.03949977]
[1724438560791,4.206907,2738.6,2737.6,3.65272]
[1724438560792,2.4177,2738.5,2737.6,3.65272]
[1724438561007,2.4177,2738.5,2737.7,3.6526]
[1724438561378,2.4177,2738.5,2737.6,3.65272]
[1724438561580,2.4177,2738.5,2737.7,3.65262]
[1724438561808,2.4177,2738.5,2737.8,3.65251]
[1724438562006,2.4177,2738.5,2738.0,3.65229]
[1724438563429,2.4177,2738.5,2737.8,4.017711]
[1724438563604,2.4177,2738.5,2737.7,3.65258]
[1724438563808,2.4177,2738.5,2737.6,3.65276]
[1724438564009,2.4177,2738.5,2737.7,3.65268]
[1724438564219,0.54177,2738.4,2737.6,3.65276]
[1724438564404,2.3992,2738.3,2737.5,3.65294]
[1724438564806,2.3992,2738.3,2737.9,3.65236]
[1724438565018,2.3992,2738.6,2737.9,3.65236]
[1724438565328,2.3992,2738.6,2737.9,3.65233]
[1724438565575,2.63912,2738.6,2737.9,3.65233]
[1724438565718,3.0,2738.5,2738.0,3.65229]
[1724438568011,5.3992,2738.4,2737.8,3.65246]
[1724438568209,5.3992,2738.4,2737.5,4.27267771]
[1724438568210,5.3992,2738.4,2737.9,3.65236]
[1724438568412,2.3145,2738.7,2737.9,3.65236]
[1724438568737,2.3145,2738.7,2737.7,3.65262]
[1724438569056,2.3145,2738.7,2737.5,6.61967771]
[1724438569057,2.4953,2738.5,2737.6,3.65275]
[1724438569399,2.4953,2738.5,2737.5,3.65288]
[1724438569541,5.4953,2738.5,2737.5,3.65288]
[1724438570137,2.404,2738.4,2737.5,3.65287]
[1724438570394,5.404,2738.4,2737.5,3.65287]
[1724438570622,0.8404,2738.3,2737.5,3.65287]
[1724438571055,0.8404,2738.3,2737.3,7.30629]
[1724438571255,2.4408,2738.2,2737.2,6.61967771]
[1724438571552,2.4408,2738.2,2737.7,3.65261]
[1724438571777,2.4408,2738.2,2737.7,7.30521]
[1724438571979,2.4408,2738.2,2737.7,4.81038877]
[1724438572195,2.4408,2738.2,2737.0,3.65352]
[1724438572392,3.0,2738.5,2737.3,3.65322]
[1724438572393,2.364,2738.0,2737.3,3.65322]
[1724438572711,2.364,2738.0,2736.9,2.4316]
[1724438572712,5.364,2738.0,2737.2,3.65325]
[1724438574722,3.65319,2737.4,2736.2,6.02439]
[1724438574929,2.4723,2737.2,2736.4,3.6543]
[1724438575222,2.4723,2737.2,2736.5,3.65428]
[1724438575526,2.4723,2737.2,2736.2,6.02447]
[1724438575737,2.4723,2737.2,2736.2,2.3698]
[1724438575896,2.4723,2737.2,2736.3,3.65457]
[1724438576100,2.4723,2737.2,2736.3,4.622487]
[1724438576934,2.35,2737.0,2736.0,3.65494]
[1724438577241,5.35,2737.0,2736.0,6.07094]
[1724438577743,5.35,2737.0,2736.0,3.65494]
[1724438577949,0.59,2736.9,2736.0,4.84977697]
[1724438578162,5.35,2737.0,2736.1,3.65481]
[1724438578299,2.3545,2736.8,2735.7,3.65532]
[1724438578637,5.3545,2736.8,2735.8,3.65521]
[1724438578843,0.55,2736.7,2735.9,4.020511]
[1724438579139,3.55,2736.7,2735.9,4.020511]
[1724438579326,3.0,2736.7,2736.1,3.65483]
[1724438579525,2.3545,2736.8,2736.2,3.65467]
[1724438579725,2.3545,2736.8,2736.3,3.65456]
[1724438580111,2.3545,2736.8,2736.1,3.65477]
[1724438580313,2.3545,2736.8,2736.1,4.6536541]
[1724438581262,2.3545,2736.8,2736.1,0.9988841]
[1724438581466,2.3545,2736.8,2735.7,3.65525]
[1724438581768,0.55,2736.7,2735.9,3.65509]
[1724438582153,2.482,2737.1,2736.3,3.65451]
[1724438582352,3.0,2737.0,2736.2,3.65468]
[1724438582527,3.0,2737.0,2736.0,3.65496]
[1724438582528,2.482,2736.9,2736.0,3.65496]
[1724438582723,2.482,2736.9,2735.9,4.27267771]
[1724438582928,2.482,2736.9,2736.2,3.6546]
[1724438583540,2.482,2736.9,2736.4,3.65439]
[1724438583878,2.482,2736.9,2736.4,4.385289]
[1724438584175,2.482,2736.9,2736.5,3.65429]
[1724438584476,2.482,2736.9,2736.4,0.730899]
[1724438585067,2.482,2736.9,2736.2,3.6546]
[1724438585270,2.482,2736.9,2735.5,2.4609]
[1724438585476,4.27267771,2737.0,2735.3,3.6558]
[1724438585477,2.4785,2736.6,2735.3,3.6558]
[1724438585631,2.3881,2736.6,2735.5,3.65551]
[1724438585826,2.3881,2736.4,2735.5,4.386641]
[1724438586054,5.3881,2736.4,2735.5,4.386641]
[1724438586774,5.3881,2736.4,2735.7,3.65536]
[1724438587072,2.3881,2736.4,2735.7,3.65536]
[1724438588186,2.3881,2736.4,2735.3,3.6558]
[1724438588330,0.55,2736.3,2735.4,4.633021]
[1724438589169,2.3567,2736.2,2735.4,0.977261]
[1724438589854,2.3567,2736.2,2735.4,4.632991]
[1724438590431,2.3567,2736.2,2735.4,0.977261]
[1724438590636,2.3567,2736.2,2735.5,3.65554]
[1724438591836,3.0,2736.6,2735.4,4.27267771]
[1724438591837,2.4921,2736.5,2735.4,4.27267771]
[1724438592038,2.4921,2736.5,2735.9,3.65504]
[1724438593740,0.38192433,2737.1,2736.3,3.65453]
[1724438593741,2.2922,2737.1,2736.3,3.65453]
[1724438593961,2.2922,2737.1,2736.5,3.65423]
[1724438594163,2.2922,2737.1,2736.4,0.365453]
[1724438595178,2.2922,2737.1,2736.4,4.019853]
[1724438595342,2.2922,2737.1,2736.4,0.365453]
[1724438595981,2.2922,2737.1,2736.3,3.65447]
[1724438596309,5.94572,2737.1,2736.1,3.65478]
[1724438596508,2.3624,2736.9,2736.1,3.65478]
[1724438597203,2.3624,2736.9,2736.1,7.30953]
[1724438597508,2.3624,2736.9,2736.1,3.65475]
[1724438597713,2.3624,2736.9,2736.2,0.365475]
[1724438598070,2.4006,2737.2,2736.6,3.65413]
[1724438598275,2.4006,2737.2,2736.4,7.30864]
[1724438598475,2.4006,2737.2,2736.4,3.65431]
[1724438599006,2.4006,2737.2,2736.6,3.65416]
[1724438599287,2.4006,2737.2,2736.7,0.365416]
[1724438600506,2.4006,2737.2,2736.7,0.43849686]
[1724438600719,2.4006,2737.2,2736.9,3.65371]
[1724438601091,2.4436,2737.8,2736.9,3.65371]
[1724438601292,2.4436,2737.8,2736.9,3.65368]
[1724438601504,2.72615778,2737.8,2737.0,3.65362]
[1724438601703,2.72615778,2737.8,2737.3,3.65319]
[1724438601704,2.4436,2737.8,2737.3,3.65319]
[1724438602116,2.4436,2737.8,2736.9,3.65365]
[1724438602318,6.09651,2737.6,2736.6,3.65416]
[1724438602519,2.4436,2737.5,2736.6,3.65412]
[1724438602742,2.4436,2737.5,2736.7,3.65402]
[1724438602958,0.24436,2737.4,2736.7,3.65402]
[1724438603947,0.24436,2737.4,2736.5,3.65418]
[1724438604737,0.24436,2737.4,2736.7,3.65402]
[1724438604896,0.24436,2737.4,2736.5,3.65418]
[1724438605097,0.24436,2737.4,2735.9,6.14476]
[1724438605098,2.3213,2737.3,2735.9,6.14476]
[1724438605398,2.877866,2737.3,2736.7,3.65402]
[1724438605598,2.3213,2737.3,2736.7,3.65402]
[1724438606024,2.3213,2737.3,2736.7,3.65396]
[1724438606231,2.3213,2737.3,2736.8,3.65381]
[1724438606433,2.3213,2737.3,2736.7,3.65394]
[1724438606618,2.3213,2737.3,2736.9,3.65372]
[1724438607020,3.0,2737.9,2736.9,3.65372]
[1724438607021,2.4917,2737.8,2737.1,3.65342]
[1724438607558,2.4917,2737.8,2737.0,3.65362]
[1724438608261,2.4917,2737.8,2737.1,3.65342]
[1724438608743,2.4917,2737.8,2737.3,3.65314]
[1724438609544,5.3632,2738.3,2737.4,3.65298]
[1724438609702,5.7665798,2738.3,2737.4,4.018278]
[1724438609903,5.7665798,2738.3,2737.5,3.65295]
[1724438610153,2.3668,2738.2,2737.2,3.65329]
[1724438610438,2.3668,2738.2,2737.2,3.65327]
[1724438610613,2.94381798,2738.2,2737.4,3.65308]
[1724438610832,2.3266,2737.9,2737.0,3.65352]
[1724438611031,2.3266,2737.9,2737.1,3.65337]
[1724438611358,2.3266,2737.9,2737.2,3.65328]
[1724438612639,2.3266,2737.9,2737.2,3.65327]
[1724438613769,2.91426,2737.9,2737.3,3.65313]
[1724438613917,2.91426,2737.9,2737.2,3.65327]
[1724438614921,2.3266,2737.9,2737.2,3.65327]
[1724438616650,2.3266,2737.9,2737.2,7.30656]
[1724438617356,2.3266,2737.9,2737.2,3.65327]
[1724438617562,2.3266,2737.9,2737.2,7.30656]
[1724438617874,2.3266,2737.9,2737.3,3.65321]
[1724438618023,2.91426,2737.9,2737.2,7.30654]
[1724438618250,2.91426,2737.9,2737.2,3.65327]
[1724438619507,2.91426,2737.9,2737.2,7.30654]
[1724438619697,2.91426,2737.9,2737.3,3.6532]
[1724438620979,2.91426,2737.9,2737.1,7.30684]
[1724438621178,0.291426,2737.8,2737.2,3.65336]
[1724438621761,0.291426,2737.8,2737.1,3.65338]
[1724438622073,2.4775,2737.7,2736.9,3.65364]
[1724438622560,2.4775,2737.7,2737.0,3.65356]
[1724438623067,2.4775,2737.7,2737.1,3.65349]
[1724438623262,0.2768926,2737.6,2737.1,3.65349]
[1724438624102,0.2768926,2737.6,2737.1,7.30698]
[1724438624275,2.4775,2737.7,2737.1,7.30691]
[1724438624481,2.4775,2737.7,2737.1,3.65342]
[1724438626062,2.4775,2737.7,2737.1,7.30683]
[1724438626266,2.4775,2737.7,2737.1,3.65341]
[1724438627323,2.4775,2737.7,2737.2,3.65336]
[1724438627522,2.4775,2737.7,2737.3,3.65321]
[1724438627960,2.4775,2737.7,2737.4,3.65297]
[1724438628280,2.2572,2738.2,2737.6,3.65274]
[1724438628786,2.2572,2738.7,2737.9,3.65243]
[1724438628919,0.22572,2738.6,2737.9,7.30478]
[1724438629122,0.22572,2738.6,2737.9,7.3047]
[1724438629318,0.22572,2738.6,2737.9,3.65235]